Workbook

Sheet паспорт
A1: ПАТ "УКРТРАНСГАЗ" | J1: ПАСПОРТ ФІЗИКО-ХІМІЧНИХ ПОКАЗНИКІВ ПРИРОДНОГО ГАЗУ № 681
A2: Філія УМГ"Харківтрансгаз" | J2: переданого УМГ "ХАРКІВТРАНСГАЗ" Херсонським ЛВУМГ по ГРС Щасливцеве
A3: Херсонське ЛВУМГ | I3: та прийнятого ПАТ "Херсонгаз" по газопроводу- відводу до совхоз Азовський
A4: Вимірювальна хіміко-аналітична лабораторія | L4: МАРШРУТ №681
A5: Свідоцтво про атестацію № РЧ 161/2015 дійсне до 01.01.2019 р. | I5: за період з 01.03.2017 по 31.03.2017 ( точка відбору ГРС Щасливцеве)
A7: Число місяця | B7: Компонентний склад, мол. % | N7: Фізико-хімічні показники газу обчислені на основі компонентного складу, 101,325 кПа | X7: Температура точки роси за вологою (Р = 3.92 МПа), °С | Y7: Температура точки роси за вуглеводнями, °С | Z7: Вміст сірководню, г/м3 | AA7: Вміст меркаптанової сірки, г/м3 | AB7: Вміст механічних домішок, г/м3
N8: Густина абсолютна, кг/м3,при 20 °С, | O8: Температура вимірювання/згоряння при 20/25°С
B9: метан, С1 | C9: етан, С2 | D9: пропан, С3 | E9: ізо-бутан, і-С4 | F9: н-бутан, н-С4 | G9: нео-пентан, нео-С5 | H9: ізо-пентан, і-С5 | I9: н-пентан, н-С5 | J9: гексани та вищі, С6+ | K9: кисень, О2 | L9: азот, N2 | M9: діоксид вуглецю, CО2 | O9: Теплота згоряння нижча | R9: Теплота згоряння вища | U9: Число Воббе вище
O10: ккал/м³ | P10: МДж/м³ | Q10: кВт⋅год/м³ | R10: ккал/м³ | S10: МДж/м³ | T10: кВт⋅год/м³ | U10: ккал/м³ | V10: МДж/м³ | W10: кВт⋅год/м³
A11: 1 | O11: 7793 | P11: 32.63 | Q11: 9.063888889 | R11: 8652 | S11: 36.225 | T11: 10.0625 | U11: 11508.74192 | V11: 48.1848 | W11: 13.38466667
A12: 2 | O12: 7793 | P12: 32.63 | Q12: 9.063888889 | R12: 8652 | S12: 36.225 | T12: 10.0625 | U12: 11508.74192 | V12: 48.1848 | W12: =V12/3.6 -> 13.38466667
A13: 3 | O13: 7793 | P13: 32.63 | Q13: 9.063888889 | R13: 8652 | S13: 36.225 | T13: 10.0625 | U13: 11508.74192 | V13: 48.1848 | W13: =V13/3.6 -> 13.38466667 | AD13: =IF(AC13=100,"ОК"," ") -> 
A14: 4 | O14: 7793 | P14: 32.63 | Q14: 9.063888889 | R14: 8652 | S14: 36.225 | T14: 10.0625 | U14: 11508.74192 | V14: 48.1848 | W14: 13.38466667 | AD14: =IF(AC14=100,"ОК"," ") -> 
A15: 5 | O15: 7793 | P15: 32.63 | Q15: 9.063888889 | R15: 8652 | S15: 36.225 | T15: 10.0625 | U15: 11508.74192 | V15: 48.1848 | W15: 13.38466667
A16: 6 | O16: 7793 | P16: 32.63 | Q16: 9.063888889 | R16: 8652 | S16: 36.225 | T16: 10.0625 | U16: 11508.74192 | V16: 48.1848 | W16: 13.38466667
A17: 7 | B17: 97.547 | C17: <0,1000 | D17: <0,0200 | E17: 0.0061 | F17: 0.0114 | G17: <0,0010 | H17: 0.0014 | I17: <0,0010 | J17: <0,0010 | K17: 0.0301 | L17: 2.3359 | M17: 0.0388 | N17: 0.681 | O17: 7797 | P17: 32.6478 | Q17: =P17/3.6 -> 9.068833333 | R17: 8656 | S17: 36.2442 | T17: =S17/3.6 -> 10.06783333 | U17: =V17*238.8459 -> 11512.89784 | V17: 48.2022 | W17: 13.3895 | X17: 35.3 | Y17: 3
A18: 8 | O18: 7797 | P18: 32.6478 | Q18: 9.068833333 | R18: 8656 | S18: 36.2442 | T18: 10.06783333 | U18: 11512.89784 | V18: 48.2022 | W18: 13.3895
A19: 9 | O19: 7797 | P19: 32.6478 | Q19: 9.068833333 | R19: 8656 | S19: 36.2442 | T19: 10.06783333 | U19: 11512.89784 | V19: 48.2022 | W19: 13.3895
A20: 10 | O20: 7797 | P20: 32.6478 | Q20: 9.068833333 | R20: 8656 | S20: 36.2442 | T20: 10.06783333 | U20: 11512.89784 | V20: 48.2022 | W20: 13.3895
A21: 11 | O21: 7797 | P21: 32.6478 | Q21: 9.068833333 | R21: 8656 | S21: 36.2442 | T21: 10.06783333 | U21: 11512.89784 | V21: 48.2022 | W21: 13.3895
A22: 12 | O22: 7797 | P22: 32.6478 | Q22: 9.068833333 | R22: 8656 | S22: 36.2442 | T22: 10.06783333 | U22: 11512.89784 | V22: 48.2022 | W22: 13.3895
A23: 13 | O23: 7797 | P23: 32.6478 | Q23: 9.068833333 | R23: 8656 | S23: 36.2442 | T23: 10.06783333 | U23: 11512.89784 | V23: 48.2022 | W23: 13.3895
A24: 14 | B24: 97.5207 | C24: <0,1000 | D24: <0,0200 | E24: <0,0010 | F24: <0,0010 | G24: <0,0010 | H24: 0.0015 | I24: <0,0010 | J24: <0,0010 | K24: 0.0302 | L24: 2.381 | M24: 0.038 | N24: 0.6809 | O24: 7791 | P24: 32.6197 | Q24: 9.061027778 | R24: 8649 | S24: 36.2135 | T24: 10.05930556 | U24: 11503.86947 | V24: 48.1644 | W24: 13.379 | X24: 37.2 | Y24: 3.6 | Z24: <0,0001 | AA24: 0.001
A25: 15 | O25: 7791 | P25: 32.6197 | Q25: 9.061027778 | R25: 8649 | S25: 36.2135 | T25: 10.05930556 | U25: 11503.86947 | V25: 48.1644 | W25: 13.379
A26: 16 | O26: 7791 | P26: 32.6197 | Q26: 9.061027778 | R26: 8649 | S26: 36.2135 | T26: 10.05930556 | U26: 11503.86947 | V26: 48.1644 | W26: 13.379
A27: 17 | O27: 7791 | P27: 32.6197 | Q27: 9.061027778 | R27: 8649 | S27: 36.2135 | T27: 10.05930556 | U27: 11503.86947 | V27: 48.1644 | W27: 13.379
A28: 18 | O28: 7791 | P28: 32.6197 | Q28: 9.061027778 | R28: 8649 | S28: 36.2135 | T28: 10.05930556 | U28: 11503.86947 | V28: 48.1644 | W28: 13.379
A29: 19 | O29: 7791 | P29: 32.6197 | Q29: 9.061027778 | R29: 8649 | S29: 36.2135 | T29: 10.05930556 | U29: 11503.86947 | V29: 48.1644 | W29: 13.379
A30: 20 | O30: 7791 | P30: 32.6197 | Q30: 9.061027778 | R30: 8649 | S30: 36.2135 | T30: 10.05930556 | U30: 11503.86947 | V30: 48.1644 | W30: 13.379 | AD30: =IF(AC30=100,"ОК"," ") -> 
A31: 21 | B31: 97.5284 | C31: <0,1000 | D31: <0,0200 | E31: <0,0010 | F31: <0,0010 | G31: <0,0010 | H31: 0.0014 | I31: <0,0010 | J31: <0,0010 | K31: 0.0295 | L31: 2.3749 | M31: 0.0377 | N31: 0.6808 | O31: 7791 | P31: 32.6216 | Q31: 9.061555556 | R31: 8650 | S31: 36.2157 | T31: 10.05991667 | U31: 11504.96816 | V31: 48.169 | W31: 13.38027778 | X31: 36 | Y31: 3.9 | AB31: відсут.
A32: 22 | O32: 7791 | P32: 32.6216 | Q32: 9.061555556 | R32: 8650 | S32: 36.2157 | T32: 10.05991667 | U32: 11504.96816 | V32: 48.169 | W32: 13.38027778
A33: 23 | O33: 7791 | P33: 32.6216 | Q33: 9.061555556 | R33: 8650 | S33: 36.2157 | T33: 10.05991667 | U33: 11504.96816 | V33: 48.169 | W33: 13.38027778 | AD33: =IF(AC33=100,"ОК"," ") -> 
A34: 24 | O34: 7791 | P34: 32.6216 | Q34: 9.061555556 | R34: 8650 | S34: 36.2157 | T34: 10.05991667 | U34: 11504.96816 | V34: 48.169 | W34: 13.38027778
A35: 25 | O35: 7791 | P35: 32.6216 | Q35: 9.061555556 | R35: 8650 | S35: 36.2157 | T35: 10.05991667 | U35: 11504.96816 | V35: 48.169 | W35: 13.38027778
A36: 26 | O36: 7791 | P36: 32.6216 | Q36: 9.061555556 | R36: 8650 | S36: 36.2157 | T36: 10.05991667 | U36: 11504.96816 | V36: 48.169 | W36: 13.38027778
A37: 27 | O37: 7791 | P37: 32.6216 | Q37: 9.061555556 | R37: 8650 | S37: 36.2157 | T37: 10.05991667 | U37: 11504.96816 | V37: 48.169 | W37: 13.38027778
A38: 28 | B38: 97.5187 | C38: <0,1000 | D38: <0,0200 | E38: <0,0010 | F38: <0,0010 | G38: <0,0010 | H38: 0.0015 | I38: <0,0010 | J38: <0,0010 | K38: 0.0309 | L38: 2.3831 | M38: 0.0379 | N38: 0.6809 | O38: 7790 | P38: 32.6183 | Q38: 9.060638889 | R38: 8649 | S38: 36.212 | T38: 10.05888889 | U38: 11503.39177 | V38: 48.1624 | W38: 13.37844444 | X38: 35.4 | Y38: 3.7
A39: 29 | O39: 7790 | P39: 32.6183 | Q39: 9.060638889 | R39: 8649 | S39: 36.212 | T39: 10.05888889 | U39: 11503.39177 | V39: 48.1624 | W39: 13.37844444
A40: 30 | O40: 7790 | P40: 32.6183 | Q40: 9.060638889 | R40: 8649 | S40: 36.212 | T40: 10.05888889 | U40: 11503.39177 | V40: 48.1624 | W40: 13.37844444
A41: 31 | O41: 7790 | P41: 32.6183 | Q41: 9.060638889 | R41: 8649 | S41: 36.212 | T41: 10.05888889 | U41: 11503.39177 | V41: 48.1624 | W41: 13.37844444
A42: Рівень одоризації відповідає чинним нормативним документам | O42: =SUMPRODUCT(O11:O41,' розрахунок'!D6:D36)/' розрахунок'!D37 -> 7792.846501 | P42: =SUMPRODUCT(P11:P41,' розрахунок'!D6:D36)/' розрахунок'!D37 -> 32.62924018 | Q42: =SUMPRODUCT(Q11:Q41,' розрахунок'!D6:D36)/' розрахунок'!D37 -> 9.063677827 | R42: =SUMPRODUCT(R11:R41,' розрахунок'!D6:D36)/' розрахунок'!D37 -> 8651.605325 | S42: =SUMPRODUCT(S11:S41,' розрахунок'!D6:D36)/' розрахунок'!D37 -> 36.2240026 | T42: =SUMPRODUCT(T11:T41,' розрахунок'!D6:D36)/' розрахунок'!D37 -> 10.06222295
H43: Середньозважене значення теплоти згоряння:
B47: Начальник управління Херсонського ЛВУМГ Доскоч М.В. 03.04.2017
C48: Підрозділу підприємства, якому підпорядкована лабораторія | O48: прізвище | R48: підпис | V48: дата
B49: Завідувач лабораторією Камишанова О.С. 03.04.2017
C50: Лабораторія, де здійснювалось вимірювання газу | O50: прізвище | R50: підпис | V50: дата
B51: Начальник служби метрології Скавронський Є.К. 03.04.2017
C52: Підрозділу, відповідального за облік газу за маршрутом | O52: прізвище | R52: підпис | V52: дата

Sheet розрахунок (hidden)
A1: Додаток до Паспорту фізико-хімічних показників природного газу по маршруту № 681
A3: Число місяця | B3: Теплота згоряння вища, МДж/м3 | D3: Загальний обсяг газу, м3
C5: ГРС Щасливцеве
A6: 1 | B6: 36.225 | C6: 37.824 | D6: =C6 -> 37.824
A7: 2 | B7: 36.225 | C7: 38.55 | D7: =C7 -> 38.55
A8: 3 | B8: 36.225 | C8: 36.274 | D8: 36.274
A9: 4 | B9: 36.225 | C9: 31.912 | D9: 31.912
A10: 5 | B10: 36.225 | C10: 34.474 | D10: 34.474
A11: 6 | B11: 36.225 | C11: 35.528 | D11: 35.528
A12: 7 | B12: 36.2442 | C12: 34.531 | D12: 34.531
A13: 8 | B13: 36.2442 | C13: 35.484 | D13: 35.484
A14: 9 | B14: 36.2442 | C14: 35.149 | D14: 35.149
A15: 10 | B15: 36.2442 | C15: 36.624 | D15: 36.624
A16: 11 | B16: 36.2442 | C16: 38.196 | D16: 38.196
A17: 12 | B17: 36.2442 | C17: 37.223 | D17: 37.223
A18: 13 | B18: 36.2442 | C18: 35.572 | D18: 35.572
A19: 14 | B19: 36.2135 | C19: 36.767 | D19: 36.767
A20: 15 | B20: 36.2135 | C20: 33.312 | D20: 33.312
A21: 16 | B21: 36.2135 | C21: 33.78 | D21: 33.78
A22: 17 | B22: 36.2135 | C22: 33.154 | D22: 33.154
A23: 18 | B23: 36.2135 | C23: 33.532 | D23: 33.532
A24: 19 | B24: 36.2135 | C24: 35.46 | D24: 35.46
A25: 20 | B25: 36.2135 | C25: 35.056 | D25: 35.056
A26: 21 | B26: 36.2157 | C26: 32.544 | D26: 32.544
A27: 22 | B27: 36.2157 | C27: 29.061 | D27: 29.061
A28: 23 | B28: 36.2157 | C28: 25.641 | D28: 25.641
A29: 24 | B29: 36.2157 | C29: 23.071 | D29: 23.071
A30: 25 | B30: 36.2157 | C30: 21.973 | D30: 21.973
A31: 26 | B31: 36.2157 | C31: 28.84 | D31: 28.84
A32: 27 | B32: 36.2157 | C32: 29.805 | D32: 29.805
A33: 28 | B33: 36.212 | C33: 27.317 | D33: 27.317
A34: 29 | B34: 36.212 | C34: 22.281 | D34: 22.281
A35: 30 | B35: 36.212 | C35: 23.462 | D35: 23.462
A36: 31 | B36: 36.212 | C36: 27.123 | D36: 27.123
A37: Загальний обсяг газу, м3 | C37: =SUM(C6:C36) -> 999.52 | D37: =SUM(D6:D36) -> 999.52
A38: Енергія, МДж | C38: =SUMPRODUCT(B6:B36,C6:C36) -> 36206.61508 | D38: =SUMPRODUCT(B6:B36,D6:D36) -> 36206.61508
A39: Теплота згоряння (середньозважене значення за місяць), МДж/м³ | C39: =C38/C37 -> 36.2240026 | D39: =D38/D37 -> 36.2240026
A40: Теплота згоряння (середньозважене значення за місяць), ккал/м³ | C40: =C39*238.8459 -> 8651.954503 | D40: 8651.954503
A41: Теплота згоряння (середньозважене значення за місяць), кВт*год./м³ | C41: =C39/3.6 -> 10.06222295 | D41: 10.06222295

Sheet додаток
A1: Додаток до Паспорту фізико-хімічних показників природного газу № 681
A3: Область | B3: ГРС, прямий споживач | C3: Cередньозважене значення вищої теплоти згоряння
C4: МДж/м³ | D4: ккал/м³ | E4: кВт*год./м³
A5: Херсонська область | B5: ГРС-Щасливцеве | C5: 36.22 | D5: 8652 | E5: 10.06
A6: Середньозважене значення вищої теплоти згоряння по маршруту № 681 | C6: 36.22 | D6: 8652 | E6: 10.06
A10: Начальника управління Херсонського ЛВУМГ Доскоч М.В. | F10: 2017-04-03
A11: Підрозділу підприємства, якому підпорядкована лабораторія | D11: прізвище | E11: підпис | F11: дата
A12: Завідувач лабораторії Камишанова О.С. | F12: 2017-04-03
A13: Лабораторія, де здійснювалось вимірювання газу | D13: прізвище | E13: підпис | F13: дата
A14: Начальник служби ГВ та М Скавронський Є.К. | F14: 2017-04-03
A15: Підрозділу, відповідального за облік газу за маршрутом | D15: прізвище | E15: підпис | F15: дата

Sheet variablesList (hidden)
A1: 3 | B1: x:\gaysin | C1: 10, 11, 24, 25, 127, 128, 132, 180, 207, 215 | D1: x:\
B2: x:\Illinci
B3: x:\Talne
